bitfinex/quotes_SOLUSD_20240717
["timestamp","ask_amount","ask_price","bid_price","bid_amount"]
[1721228123718,6.2319,160.47,160.42,45.0]
[1721228124144,20.0,160.48,160.42,45.0]
[1721228124145,6.232,160.46,160.42,45.0]
[1721228124320,20.0,160.48,160.38,10.0]
[1721228124520,6.2325,160.45,160.39,45.17]
[1721228124840,20.0,160.48,160.4,7.48077132]
[1721228124841,6.2321,160.46,160.4,7.48077132]
[1721228125021,6.2321,160.46,160.41,45.0]
[1721228125224,6.2321,160.46,160.42,1.24645894]
[1721228125449,6.2321,160.46,160.43,1.24645894]
[1721228125728,6.2325,160.45,160.43,1.24645894]
[1721228125955,6.2328,160.44,160.43,1.24645894]
[1721228126321,6.2328,160.44,160.41,45.0]
[1721228126631,6.2328,160.44,160.42,1.2465166]
[1721228126821,6.2325,160.45,160.42,1.2465166]
[1721228127017,6.2325,160.45,160.43,1.24652158]
[1721228128655,6.2341,160.41,160.37,6.2911]
[1721228128824,6.2335,160.43,160.37,6.2911]
[1721228129140,15.5794,160.47,160.37,6.2911]
[1721228129141,6.2338,160.42,160.37,6.2911]
[1721228129338,6.2333,160.43,160.37,12.5263]
[1721228129523,15.7494,160.47,160.37,21.8791]
[1721228129721,20.17,160.46,160.38,6.2348]
[1721228129941,6.2336,160.42,160.37,21.8791]
[1721228130145,6.232,160.47,160.39,15.586]
[1721228130347,6.232,160.47,160.4,46.24643605]
[1721228130531,6.232,160.47,160.41,6.2339]
[1721228131451,6.2313,160.48,160.43,6.2332]
[1721228131652,6.2313,160.48,160.44,1.24628051]
[1721228131867,6.2304,160.51,160.44,77.62408051]
[1721228132158,6.23,160.52,160.46,6.232]
[1721228132330,6.2302,160.51,160.46,6.232]
[1721228132533,6.2302,160.51,160.44,31.3778]
[1721228132739,6.2298,160.52,160.46,6.2317]
[1721228132934,22.0789,160.56,160.45,6.2324]
[1721228133136,6.2307,160.5,160.44,43.64]
[1721228133333,15.5729,160.54,160.44,21.8256]
[1721228133533,6.2317,160.47,160.44,21.8256]
[1721228133793,15.575,160.52,160.44,15.7961]
[1721228133934,6.2317,160.47,160.44,15.7961]
[1721228134546,6.2327,160.45,160.4,22.0079]
[1721228134745,6.2329,160.44,160.4,22.0079]
[1721228137857,31.1491,160.52,160.41,7.48054654]
[1721228137858,6.232,160.46,160.41,7.48054654]
[1721228138266,6.2317,160.47,160.42,6.2335]
[1721228138579,6.2314,160.48,160.43,7.4794937]
[1721228138943,33.58,160.55,160.43,1.2463937]
[1721228139176,15.5723,160.55,160.44,45.0]
[1721228139352,37.65,160.56,160.43,45.0]
[1721228139673,37.65,160.56,160.42,15.5836]
[1721228140170,6.2321,160.46,160.41,6.2339]
[1721228140388,6.2321,160.46,160.42,45.0]
[1721228140757,6.2324,160.45,160.42,45.0]
[1721228140974,6.2318,160.47,160.41,60.5846]
[1721228141172,6.2314,160.48,160.42,6.2332]
[1721228141382,6.2317,160.47,160.42,6.2332]
[1721228141955,15.5758,160.51,160.42,6.2332]
[1721228141956,6.2314,160.48,160.42,6.2332]
[1721228142657,6.2318,160.47,160.42,6.2332]
[1721228143157,6.2322,160.46,160.41,60.5846]
[1721228143354,6.2325,160.45,160.41,60.5846]
[1721228143553,6.2326,160.45,160.42,1.24639965]
[1721228143799,6.2321,160.46,160.42,1.24639965]
[1721228143981,6.232,160.46,160.41,21.8186]
[1721228144166,15.5758,160.51,160.42,46.24640915]
[1721228144488,6.2315,160.48,160.43,7.47947645]
[1721228144781,33.58,160.54,160.46,6.232]
[1721228144782,6.2298,160.52,160.46,6.232]
[1721228144970,6.2298,160.52,160.42,63.69]
[1721228144971,6.2298,160.52,160.47,7.47768479]
[1721228145662,15.5699,160.57,160.47,1.24608479]
[1721228145663,6.2301,160.51,160.47,1.24608479]
[1721228145855,6.2292,160.54,160.48,22.1521]
[1721228146071,6.2292,160.54,160.49,7.78958853]
[1721228146392,6.2292,160.54,160.49,14.02028853]
[1721228146557,55.7357,160.61,160.5,6.2304]
[1721228146558,6.2286,160.55,160.5,6.2304]
[1721228146880,6.2286,160.55,160.49,12.7745]
[1721228147191,64.7069,160.64,160.49,6.5437]
[1721228147192,6.2294,160.53,160.49,6.5437]
[1721228147479,6.2297,160.52,160.49,6.5437]
[1721228148386,15.5692,160.58,160.49,6.5437]
[1721228148561,20.17,160.57,160.49,6.5437]
[1721228148763,6.2298,160.52,160.49,6.5437]
[1721228148965,6.2298,160.52,160.48,15.9211]
[1721228149488,6.2302,160.51,160.48,15.9211]
[1721228149667,6.2306,160.5,160.45,6.6629]
[1721228149990,6.2313,160.48,160.44,15.0494]
[1721228150496,33.75,160.55,160.44,15.0494]
[1721228150680,6.2312,160.49,160.44,15.0494]
[1721228150995,6.2313,160.48,160.44,15.0494]
[1721228151189,6.2318,160.47,160.44,15.0494]
[1721228151384,15.5739,160.53,160.44,15.0494]
[1721228151562,6.2313,160.48,160.44,15.0494]
[1721228152166,6.2308,160.5,160.44,21.2821]
[1721228152863,6.231,160.49,160.44,15.0494]
[1721228153397,6.231,160.49,160.44,21.282]
[1721228154690,6.2304,160.51,160.44,30.6307]
[1721228154894,26.2306,160.5,160.44,30.6307]
[1721228155077,6.2309,160.49,160.44,36.8635]
[1721228155462,33.58,160.55,160.5,6.2305]
[1721228155463,6.2286,160.55,160.5,6.2305]
[1721228156177,6.2283,160.56,160.5,6.2305]
[1721228156779,6.2286,160.55,160.5,6.2305]
[1721228157082,6.2286,160.55,160.51,1.24576872]
[1721228157290,6.2291,160.54,160.52,1.24576885]
[1721228158287,6.2291,160.54,160.5,45.0]
[1721228159203,6.2294,160.53,160.5,45.0]
[1721228159373,6.2294,160.53,160.49,45.0]
[1721228159572,6.229,160.54,160.5,1.24579777]
[1721228159796,6.2286,160.55,160.5,7.47629777]
[1721228160105,6.229,160.54,160.5,1.24579777]
[1721228160288,39.5917,160.61,160.51,16.614]
[1721228160289,15.5659,160.61,160.51,16.614]
[1721228160470,6.2277,160.58,160.52,52.47503023]
[1721228160893,6.2279,160.57,160.52,52.47503023]
[1721228161709,6.2282,160.56,160.52,46.24563023]
[1721228161883,6.2282,160.56,160.53,1.24554518]
[1721228162082,6.2282,160.56,160.52,45.0]
[1721228162594,6.2286,160.55,160.52,45.0]
[1721228162781,6.2289,160.54,160.52,45.0]
[1721228162983,6.2289,160.54,160.51,16.614]
[1721228163400,6.2297,160.52,160.51,16.614]
[1721228163575,6.2294,160.53,160.51,16.614]
[1721228164395,6.2297,160.52,160.51,16.614]
[1721228164600,6.2294,160.53,160.51,16.614]
[1721228164996,6.2297,160.52,160.51,16.614]
[1721228165298,15.57,160.57,160.47,21.8103]
[1721228165478,20.17,160.56,160.48,45.0]
[1721228165676,6.23,160.52,160.47,21.8103]
[1721228166076,20.17,160.56,160.47,21.8103]
[1721228166077,6.2301,160.51,160.47,15.5787]
[1721228166887,6.2298,160.52,160.47,21.8103]
[1721228167302,6.2294,160.53,160.48,6.2312]
[1721228168097,6.2293,160.54,160.48,6.2312]
[1721228168483,6.2295,160.53,160.48,6.2312]
[1721228169393,6.2289,160.55,160.5,6.2302]
[1721228169603,6.229,160.54,160.49,21.8076]
[1721228170512,6.2286,160.55,160.5,6.2303]
[1721228170692,6.2286,160.55,160.51,1.24582891]
[1721228170885,60.9769,160.64,160.51,1.24582891]
[1721228170886,6.2273,160.59,160.54,6.2289]
[1721228171087,6.2273,160.59,160.55,1.24559373]
[1721228172005,6.2274,160.58,160.55,1.24559373]
[1721228173205,6.2278,160.57,160.53,15.9284]
[1721228173412,6.2283,160.56,160.54,1.24549563]
[1721228173579,6.2281,160.57,160.53,15.9284]
[1721228174193,6.2289,160.55,160.53,15.9284]
[1721228174407,6.2289,160.54,160.53,15.9284]
[1721228174595,6.2285,160.56,160.5,6.2304]
[1721228174912,6.2285,160.56,160.49,15.1329]
[1721228175282,6.2285,160.56,160.51,6.2301]
[1721228175917,15.568,160.59,160.49,21.3636]
[1721228176113,20.17,160.58,160.5,51.2304]
[1721228176903,6.2288,160.55,160.5,51.2304]
[1721228177210,20.17,160.58,160.51,1.24572903]
[1721228177709,6.2287,160.55,160.52,1.24582615]
[1721228178108,6.2283,160.56,160.52,1.24582615]
[1721228178309,20.0,160.58,160.52,1.24582615]
[1721228178610,20.0,160.58,160.51,45.0]
[1721228178786,6.2285,160.56,160.51,51.23]
[1721228178986,6.2286,160.55,160.51,45.0]
[1721228179188,6.228,160.57,160.52,6.2297]
[1721228179901,6.2283,160.56,160.51,51.23]
[1721228180417,20.0,160.58,160.51,45.0]
[1721228180588,6.2293,160.53,160.49,15.1329]
[1721228181095,6.2294,160.53,160.5,1.2458386]
[1721228181803,6.229,160.54,160.5,1.2458386]
[1721228182009,6.2285,160.55,160.5,7.4761386]
[1721228182513,6.2282,160.56,160.51,6.23]
[1721228182691,6.2282,160.56,160.52,7.47533604]
[1721228183017,6.2282,160.56,160.52,1.24563604]
[1721228183604,20.0,160.58,160.49,36.9404]
[1721228183900,6.2288,160.55,160.5,51.2305]
[1721228184295,6.2288,160.55,160.5,69.9205]
[1721228184518,6.228,160.57,160.52,6.2296]
[1721228184827,20.0,160.59,160.51,0.17]
[1721228185010,20.0,160.59,160.51,15.745]
[1721228185198,6.2279,160.57,160.52,51.2294]
[1721228186714,6.2275,160.58,160.53,6.2293]
[1721228186888,20.0,160.59,160.53,1.24548667]
[1721228186889,6.2285,160.55,160.53,1.24548667]
[1721228187096,20.0,160.59,160.49,15.1329]
[1721228187097,15.5688,160.58,160.49,15.1329]
[1721228187305,6.2297,160.52,160.49,15.1329]
[1721228187517,6.2302,160.51,160.49,16.37874553]
[1721228187725,6.2302,160.51,160.49,15.1329]
[1721228188511,15.5728,160.54,160.45,30.9439]
[1721228188716,6.2309,160.49,160.45,37.1763]
[1721228189010,6.2305,160.5,160.45,37.1763]
[1721228189213,15.5728,160.54,160.46,1.24608694]
[1721228189214,6.23,160.52,160.46,1.24608694]
[1721228189420,6.23,160.52,160.47,6.2315]
[1721228189597,6.2301,160.51,160.47,6.2315]
[1721228189798,6.2301,160.51,160.46,6.2319]
[1721228190618,6.2305,160.5,160.45,30.9439]
[1721228190823,6.2305,160.5,160.46,45.0]
[1721228191028,15.5749,160.52,160.45,15.3633]
[1721228191202,6.2313,160.48,160.45,15.3633]
[1721228191390,31.1397,160.57,160.4,10.0]
[1721228191391,15.5767,160.5,160.41,1.24622551]
[1721228191595,20.17,160.49,160.41,1.2464771]
[1721228192108,20.0,160.49,160.41,16.8308771]
[1721228192307,6.2316,160.48,160.41,15.5844]
[1721228192509,6.2316,160.48,160.42,6.2335]
[1721228193111,6.2318,160.47,160.42,6.2335]
[1721228193308,6.2321,160.46,160.41,21.8183]
[1721228193499,6.2324,160.45,160.42,1.24645617]
[1721228193715,15.5759,160.51,160.43,1.24646254]
[1721228193716,6.2321,160.46,160.43,1.24646254]
[1721228194815,6.2321,160.46,160.42,1.24644937]
[1721228195016,6.2321,160.46,160.43,1.24645333]
[1721228196025,6.2321,160.46,160.42,1.24645543]
[1721228196201,6.2321,160.46,160.43,1.24645552]
[1721228196930,0.17,160.5,160.4,15.017]
[1721228196931,15.5777,160.49,160.4,15.017]
[1721228197107,0.17,160.48,160.4,15.017]
[1721228197311,15.5798,160.47,160.4,15.017]
[1721228197531,6.2336,160.43,160.4,15.017]
[1721228197707,6.2329,160.44,160.4,15.017]
[1721228198109,6.2325,160.45,160.4,21.2513]
[1721228199415,6.2328,160.44,160.4,21.2513]
[1721228199604,6.2328,160.44,160.4,15.017]
[1721228200843,6.2334,160.43,160.4,15.017]
[1721228201636,6.2336,160.42,160.38,15.5874]
[1721228202111,6.234,160.41,160.36,16.1773]
[1721228202312,6.234,160.41,160.36,22.4131]
[1721228203942,6.2345,160.4,160.36,17.42430958]
[1721228204427,15.5815,160.45,160.37,6.2353]
[1721228204733,6.234,160.41,160.36,16.1773]
[1721228205037,6.2337,160.42,160.37,6.2355]
[1721228205339,6.2337,160.42,160.38,1.24684582]
[1721228205520,26.2328,160.44,160.38,1.24684582]
[1721228205925,26.2328,160.44,160.39,6.2347]
[1721228206637,6.2332,160.43,160.39,6.2347]
[1721228207008,6.2338,160.42,160.37,21.8236]
[1721228207207,6.2338,160.42,160.38,1.24683053]
[1721228207423,6.2332,160.43,160.38,7.48193053]
[1721228207823,6.2332,160.43,160.38,6.2351]
[1721228208031,20.0,160.44,160.37,15.5884]
[1721228208216,6.2343,160.41,160.36,22.4129]
[1721228208537,6.2343,160.41,160.37,1.24686429]
[1721228208538,6.2341,160.41,160.37,1.24686429]
[1721228209137,6.2344,160.4,160.36,16.1773]
[1721228210141,6.2349,160.39,160.36,16.1773]
[1721228210352,6.2345,160.4,160.36,16.1773]
[1721228210644,6.2341,160.41,160.37,1.24694812]
[1721228211444,6.2348,160.39,160.36,16.1773]
[1721228211609,6.2345,160.4,160.36,17.42430038]
[1721228212636,6.2341,160.41,160.36,23.66020038]
[1721228213721,15.5827,160.44,160.37,6.2355]
[1721228213923,6.2337,160.42,160.37,6.2355]
[1721228214236,6.2342,160.41,160.37,1.24695103]
[1721228214429,6.2337,160.42,160.37,7.48245103]
[1721228215046,6.2337,160.42,160.37,6.2355]
[1721228215341,6.2337,160.42,160.37,1.24691689]
[1721228215711,6.2337,160.42,160.37,7.48231689]
[1721228215931,26.2333,160.43,160.38,15.5876]
[1721228216135,26.2333,160.43,160.39,1.24670506]
[1721228216326,20.0,160.43,160.39,6.2346]
[1721228216527,26.2334,160.43,160.38,21.8226]
[1721228216726,26.2334,160.43,160.4,1.24665882]
[1721228217134,26.2334,160.43,160.38,21.8226]
[1721228217336,6.2337,160.42,160.38,21.8226]
[1721228217638,20.0,160.43,160.36,16.1773]
[1721228217840,15.5823,160.44,160.36,16.1773]
[1721228218043,20.17,160.43,160.36,16.1773]
[1721228218214,6.2347,160.4,160.36,16.1773]
[1721228219034,6.2347,160.4,160.36,22.4132]
[1721228219222,6.2347,160.4,160.36,16.1773]
[1721228219838,6.2347,160.4,160.36,22.4131]
[1721228220039,6.2341,160.41,160.36,22.4131]
[1721228220551,29.87,160.46,160.37,1.24694639]
[1721228220730,26.2325,160.45,160.37,46.24694639]
[1721228220917,6.2329,160.44,160.4,21.8199]
[1721228221117,6.2332,160.43,160.38,6.235]
[1721228221940,65.4485,160.48,160.39,16.83335841]
[1721228222139,6.2325,160.45,160.4,7.48065646]
[1721228222346,6.2351,160.39,160.35,7.34552295]
[1721228222524,45.4545,160.42,160.35,0.8269982]
[1721228222727,20.0,160.41,160.35,0.8269982]
[1721228223247,26.2342,160.41,160.36,7.48261632]
[1721228223442,45.4516,160.45,160.37,6.2355]
[1721228223443,6.2339,160.42,160.37,6.2355]
[1721228223634,6.2333,160.43,160.38,7.48183722]
[1721228225050,6.2336,160.42,160.38,7.48183722]
[1721228225248,6.2341,160.41,160.37,16.1401]
[1721228225551,15.5806,160.46,160.38,1.24677866]
[1721228225552,6.2337,160.42,160.38,1.24677866]
[1721228226356,15.5806,160.46,160.37,16.1401]
[1721228226640,6.2329,160.44,160.39,6.2347]
[1721228226822,6.2329,160.44,160.37,16.1401]
[1721228226823,6.2325,160.45,160.4,6.2343]
[1721228227025,29.87,160.51,160.41,1.2465734]
[1721228227222,43.68463833,160.52,160.41,1.2465734]
[1721228227223,37.54912293,160.54,160.42,1.24637081]
[1721228227551,30.20085259,160.56,160.47,10.0]
[1721228227552,22.8663,160.56,160.47,10.0]
[1721228227728,4.95464944,160.59,160.48,6.2309]
[1721228227729,6.2295,160.53,160.48,6.2309]
[1721228228044,6.2301,160.52,160.46,6.232]
[1721228228248,29.87,160.56,160.45,15.5809]
[1721228228249,45.4412,160.56,160.45,15.5809]
[1721228228433,6.2304,160.51,160.45,21.813]
[1721228229055,6.2304,160.51,160.46,6.232]
[1721228229226,45.4412,160.56,160.45,15.5809]
[1721228229227,45.4412,160.56,160.47,6.2316]
[1721228229553,20.0,160.55,160.45,15.5809]
[1721228229724,6.2308,160.5,160.45,21.8132]
[1721228230043,6.2302,160.51,160.45,21.8132]
[1721228230428,6.2306,160.5,160.45,21.8132]
[1721228230959,15.5729,160.54,160.44,15.7849]
[1721228231241,20.17,160.53,160.44,15.7849]
[1721228231459,6.2316,160.48,160.44,15.7849]
[1721228231634,15.7452,160.52,160.44,15.7849]
[1721228231635,6.232,160.47,160.44,15.7849]
[1721228232143,6.232,160.46,160.43,1.24639847]
[1721228232746,6.232,160.46,160.42,1.24646986]
[1721228232922,6.232,160.46,160.41,15.5845]
[1721228232923,6.232,160.46,160.43,1.24647944]
[1721228233125,15.7452,160.52,160.43,1.24647944]
[1721228233325,20.17,160.51,160.43,1.24647944]
[1721228233629,6.2312,160.49,160.44,6.2327]
[1721228234041,6.2313,160.48,160.44,7.47905351]
[1721228234239,6.2313,160.48,160.44,1.24635351]
[1721228234632,6.2313,160.48,160.43,21.8157]
[1721228234831,6.2301,160.52,160.45,25.5803]
[1721228235134,6.2301,160.52,160.44,19.97620955]
[1721228235135,45.441,160.56,160.47,15.5788]
[1721228235532,6.2304,160.51,160.46,51.2317]
[1721228235857,6.2304,160.51,160.46,51.232]
[1721228236231,6.2305,160.5,160.46,51.232]
[1721228236540,45.441,160.56,160.46,51.232]
[1721228236745,6.2305,160.5,160.47,1.24607715]
[1721228237133,6.2299,160.52,160.47,6.2314]
[1721228237332,6.2299,160.52,160.46,15.5795]
[1721228237333,45.441,160.56,160.46,21.8114]
[1721228237534,6.2304,160.51,160.46,21.8114]
[1721228238033,6.2311,160.49,160.47,1.24612939]
[1721228238231,6.2311,160.49,160.45,1.24617509]
[1721228238446,6.2311,160.49,160.44,6.2325]
[1721228238645,6.2314,160.48,160.45,1.24618107]
[1721228238858,6.2314,160.48,160.46,1.24626857]
[1721228239043,6.2316,160.47,160.43,21.8157]
[1721228239254,6.2313,160.48,160.43,21.8157]
[1721228239563,6.2317,160.47,160.44,1.24631193]
[1721228240038,15.5748,160.52,160.42,6.2335]
[1721228240237,6.2319,160.47,160.42,6.2335]
[1721228241550,6.2319,160.47,160.43,6.2332]
[1721228241853,6.2319,160.47,160.44,1.24634566]
[1721228242064,20.0,160.51,160.44,7.47894566]
[1721228242434,20.0,160.51,160.44,6.2326]
[1721228242935,20.0,160.51,160.42,15.5837]
[1721228243134,6.2318,160.47,160.42,21.8169]
[1721228244061,6.2321,160.46,160.42,21.8169]
[1721228245354,6.2318,160.47,160.42,21.8169]
[1721228245560,6.2313,160.48,160.43,6.233]
[1721228246161,6.2313,160.48,160.43,7.47929468]
[1721228246638,20.0,160.51,160.45,6.2324]
[1721228246639,6.2309,160.49,160.45,6.2324]
[1721228246832,6.2309,160.49,160.46,1.2461392]
[1721228247358,6.2306,160.5,160.46,1.2461392]
[1721228247659,6.2309,160.49,160.46,1.2461392]
[1721228248364,6.2298,160.52,160.47,21.6903]
[1721228248557,15.5713,160.56,160.48,61.82381864]
[1721228248879,15.5713,160.56,160.49,1.2457773]
[1721228249250,15.5713,160.56,160.49,7.4766773]
[1721228249758,6.229,160.54,160.49,7.4766773]
[1721228250968,15.5713,160.56,160.49,1.2457773]
[1721228250969,6.2294,160.53,160.49,1.2457773]
[1721228251139,6.2297,160.52,160.48,60.5779]
[1721228251471,6.2303,160.51,160.49,1.24585455]
[1721228251767,6.2313,160.48,160.47,22.93633255]
[1721228251942,15.5728,160.54,160.47,22.93633255]
[1721228251943,15.5728,160.54,160.47,21.6903]
[1721228252144,6.2306,160.5,160.48,1.24603913]
[1721228252563,6.2309,160.49,160.48,1.24603913]
[1721228252744,6.2309,160.49,160.47,21.6903]
[1721228253140,6.2306,160.5,160.47,21.6903]
[1721228253341,6.2306,160.5,160.48,1.24606625]
[1721228253762,15.5728,160.54,160.48,1.24606625]
[1721228253763,6.2301,160.51,160.48,1.24606625]
[1721228254049,6.2301,160.51,160.47,27.9219]
[1721228254233,6.2301,160.51,160.47,29.16793863]
[1721228254434,6.2298,160.52,160.48,7.47713863]
[1721228254636,6.2298,160.52,160.49,1.24590145]
[1721228254859,6.2292,160.54,160.48,6.2311]
[1721228255258,6.2292,160.54,160.49,6.2308]
[1721228255461,6.2292,160.54,160.47,21.6903]
[1721228255462,6.2286,160.55,160.5,1.24581445]
[1721228255777,6.2286,160.55,160.5,21.8064]
[1721228257746,6.229,160.54,160.5,21.8064]
[1721228258664,6.229,160.54,160.5,15.576]
[1721228259747,6.229,160.54,160.51,1.24574901]
[1721228259948,6.229,160.54,160.52,1.24575563]
[1721228260147,258.9,160.57,160.48,6.2311]
[1721228260569,15.5707,160.56,160.49,1.24584683]
[1721228261167,15.5707,160.56,160.47,37.2689]
[1721228261168,6.2306,160.5,160.47,15.1317]
[1721228261375,6.2309,160.49,160.47,15.1317]
[1721228261668,6.231,160.49,160.47,15.1317]
[1721228261842,15.5737,160.53,160.43,6.4111]
[1721228261843,6.2313,160.48,160.45,1.24628784]
[1721228262043,6.2313,160.48,160.46,1.24626432]
[1721228262243,6.2313,160.48,160.44,1.24626847]
[1721228263065,15.5758,160.51,160.44,1.24626847]
[1721228263267,6.2321,160.46,160.44,1.24626847]
[1721228263476,6.2321,160.46,160.43,22.5929]
[1721228264161,6.2313,160.48,160.43,22.5929]
[1721228264549,6.2313,160.48,160.43,28.826]
[1721228264975,6.2317,160.47,160.43,28.826]
[1721228265151,6.2317,160.47,160.43,22.5929]
[1721228265574,6.2321,160.46,160.43,22.5929]
[1721228266246,6.2318,160.47,160.43,22.5929]
[1721228266442,6.232,160.46,160.43,22.5929]
[1721228266662,6.2318,160.47,160.43,22.5929]
[1721228267172,6.232,160.46,160.43,22.5929]
[1721228268758,6.232,160.46,160.43,16.1818]
[1721228268956,6.2326,160.45,160.41,15.5843]
[1721228269259,6.2329,160.44,160.39,12.7455]
[1721228269646,6.2329,160.44,160.4,1.2465962]
[1721228269846,6.2329,160.44,160.4,7.4808962]
[1721228270464,6.2324,160.46,160.41,1.24659464]
[1721228270650,6.2324,160.46,160.41,7.48049464]
[1721228270971,6.2321,160.46,160.41,6.2339]
[1721228271475,6.2329,160.44,160.4,21.8195]
[1721228272667,6.2325,160.45,160.4,21.8195]
[1721228275666,15.7447,160.52,160.42,15.5838]
[1721228275852,0.17,160.51,160.42,15.5838]
[1721228276053,6.2317,160.47,160.42,21.8173]
[1721228276261,6.2313,160.48,160.43,7.47940352]
[1721228276468,6.2317,160.47,160.43,6.233]
[1721228276770,6.2312,160.49,160.43,6.233]
[1721228276974,6.2308,160.5,160.45,22.6744]
[1721228277184,6.2308,160.5,160.46,1.24612237]
[1721228277482,45.4447,160.52,160.45,16.4421]
[1721228278082,6.2309,160.5,160.46,1.24620144]
[1721228278260,45.4447,160.52,160.45,16.4421]
[1721228278477,20.0,160.51,160.45,16.4421]
[1721228278773,6.2325,160.45,160.43,1.24635359]
[1721228279080,6.2322,160.46,160.43,1.24635359]
[1721228279470,6.2312,160.49,160.44,1.24643601]
[1721228279656,35.5759,160.51,160.44,1.24643601]
[1721228279657,6.2314,160.48,160.44,1.24643601]
[1721228279856,6.2314,160.48,160.44,7.47923601]
[1721228280070,6.2314,160.48,160.44,1.24643601]
[1721228280270,6.231,160.49,160.44,7.47913601]
[1721228280471,15.573,160.54,160.44,16.82803601]
[1721228280673,6.2308,160.5,160.45,7.47822889]
[1721228280882,6.2308,160.5,160.46,1.24613971]
[1721228281953,6.23,160.52,160.46,68.30293971]
[1721228282158,15.5699,160.57,160.47,25.7311]
[1721228282364,6.2288,160.55,160.5,6.2303]
[1721228282560,6.2283,160.56,160.51,7.47572585]
[1721228282863,6.2283,160.56,160.52,1.24562782]
[1721228283060,6.2278,160.57,160.52,52.47532782]
[1721228283250,6.2278,160.57,160.5,34.3054]
[1721228283251,6.229,160.54,160.5,15.5754]
[1721228283482,15.5672,160.6,160.5,15.5754]
[1721228284056,6.2282,160.56,160.51,6.2298]
[1721228284286,6.2278,160.57,160.52,7.47533205]
[1721228284465,15.5672,160.6,160.52,7.47533205]
[1721228284466,6.2275,160.58,160.52,7.47533205]
[1721228284663,6.2275,160.58,160.53,6.2293]
[1721228284874,6.2275,160.58,160.54,1.24548147]
[1721228285060,6.2275,160.58,160.55,1.24548107]
[1721228285756,37.89907509,160.62,160.54,16.6502]
[1721228285984,36.71368386,160.66,160.56,6.2281]
[1721228285985,6.2263,160.61,160.56,6.2281]
[1721228286174,6.2263,160.61,160.57,1.24525579]
[1721228286359,6.2259,160.62,160.58,1.24523804]
[1721228286558,6.2259,160.62,160.57,6.2277]
[1721228286983,15.561,160.66,160.55,51.2284]
[1721228287190,6.2263,160.61,160.56,6.2281]
[1721228287493,15.561,160.66,160.56,6.228]
[1721228287982,6.2259,160.62,160.57,1.245178]
[1721228288187,15.561,160.66,160.55,45.0]
[1721228288359,15.561,160.66,160.55,55.0]
[1721228288699,6.2255,160.63,160.57,6.2276]
[1721228288860,15.561,160.66,160.57,6.2276]
[1721228288861,6.2259,160.62,160.57,6.2276]
[1721228289056,15.561,160.66,160.56,21.7981]
[1721228289278,6.2263,160.61,160.56,21.7981]
[1721228289776,6.227,160.59,160.54,16.6502]
[1721228289989,6.2267,160.6,160.55,6.2285]
[1721228291279,15.5653,160.62,160.54,16.6502]
[1721228291590,6.2286,160.55,160.5,37.8332]
[1721228292180,15.569,160.58,160.5,16.0271]
[1721228292363,20.0,160.57,160.5,16.0271]
[1721228292566,6.2285,160.56,160.51,6.23]
[1721228292984,20.0,160.57,160.51,6.23]
[1721228293290,6.229,160.54,160.5,16.0271]
[1721228293469,6.2286,160.55,160.5,22.2575]
[1721228293988,6.229,160.54,160.5,16.0271]
[1721228294283,6.2286,160.55,160.5,22.2575]
[1721228294466,15.5681,160.59,160.51,6.2301]
[1721228294467,6.2283,160.56,160.51,6.2301]
[1721228294790,6.2285,160.55,160.51,6.2301]
[1721228294984,6.2285,160.55,160.5,16.0271]
[1721228295188,6.229,160.54,160.5,16.0271]